bitfinex/quotes_ETHUSD_20220308
["timestamp","ask_amount","ask_price","bid_price","bid_amount"]
[1646720593171,0.3,2518.4,2518.0,0.0253833]
[1646720593374,4.7931198,2518.5,2518.0,0.0253833]
[1646720593577,2.0869078,2518.4,2518.0,0.0253833]
[1646720593774,2.3869078,2518.4,2518.0,0.0253833]
[1646720594170,0.86489063,2518.1,2518.0,0.0253833]
[1646720594373,0.86489063,2518.1,2517.7,0.0259461]
[1646720594374,4.3874,2518.1,2517.7,0.0259461]
[1646720594573,5.6808219,2518.1,2517.7,0.04724597]
[1646720594772,7.070931,2518.1,2517.7,0.04724597]
[1646720595371,0.91590332,2517.8,2517.7,0.04724597]
[1646720595576,0.491,2517.8,2517.1,0.95469423]
[1646720595811,0.791,2517.8,2517.1,1.98909603]
[1646720596010,0.3,2517.8,2517.1,1.98909603]
[1646720596208,2.2999,2518.3,2517.1,1.98909603]
[1646720596209,5.7999,2518.3,2517.1,1.98909603]
[1646720596409,0.491,2518.3,2517.1,1.98909603]
[1646720596611,1.12953347,2518.2,2517.5,0.90155422]
[1646720596811,1.3896821,2518.1,2517.2,0.0030304]
[1646720597014,1.9868692,2518.0,2517.2,0.0030304]
[1646720597315,2.4778692,2518.0,2517.2,0.0030304]
[1646720597714,2.4778692,2518.0,2517.2,0.0410318]
[1646720597914,2.00378375,2517.8,2517.2,0.0410318]
[1646720598314,2.45779697,2517.8,2517.2,0.0410318]
[1646720598715,0.45401322,2517.8,2517.2,0.0410318]
[1646720598915,0.3,2517.8,2517.2,0.0410318]
[1646720599560,0.3,2517.8,2517.4,0.00531912]
[1646720599759,4.06683024,2518.0,2517.4,0.04332052]
[1646720600163,0.9933474,2517.8,2517.4,0.04332052]
[1646720600361,1.18310074,2517.8,2517.4,0.0380014]
[1646720600562,1.48310074,2517.8,2517.6,0.0018444]
[1646720600768,1.48310074,2517.8,2517.6,0.0326808]
[1646720600962,0.3,2517.8,2517.6,0.0326808]
[1646720601162,1.7631,2518.4,2517.6,0.0326808]
[1646720601163,1.95474269,2518.4,2517.6,0.0326808]
[1646720601565,1.95474269,2518.4,2517.6,0.0308364]
[1646720601761,2.25474269,2518.4,2518.0,0.92174536]
[1646720601962,0.19164269,2518.4,2518.0,0.92174536]
[1646720602166,0.20191793,2518.8,2518.0,0.92174536]
[1646720602566,0.1985,2519.1,2518.0,0.92174536]
[1646720602567,0.491,2519.1,2518.0,0.92174536]
[1646720602768,0.3964,2518.8,2518.0,0.92174536]
[1646720602966,1.46676549,2518.8,2517.9,0.00096]
[1646720603208,1.07036549,2518.8,2518.3,0.00531478]
[1646720603413,1.26886549,2518.8,2518.3,0.00531478]
[1646720603710,1.2930488,2518.5,2518.3,0.00531478]
[1646720603910,0.69977618,2518.5,2517.9,0.00096]
[1646720604112,1.49391727,2518.4,2517.7,0.0136776]
[1646720604310,1.49391727,2518.4,2518.0,0.02126188]
[1646720604311,1.98491727,2518.4,2518.0,0.02126188]
[1646720604510,3.09181727,2518.4,2518.0,0.02126188]
[1646720604710,1.8394,2518.3,2518.0,0.02126188]
[1646720604911,0.491,2518.2,2518.0,0.02126188]
[1646720605111,0.491,2518.2,2517.7,0.0136776]
[1646720605310,0.8874,2518.2,2517.7,0.0136776]
[1646720605510,1.0891489,2518.0,2517.7,0.0136776]
[1646720605711,1.3891489,2518.0,2517.7,0.0136776]
[1646720605916,0.99356,2517.9,2517.7,0.0136776]
[1646720606113,2.2765489,2518.0,2517.5,0.007165]
[1646720606114,0.491,2517.8,2517.5,0.007165]
[1646720606312,0.491,2517.7,2517.5,0.007165]
[1646720606513,1.22921568,2517.6,2517.5,0.007165]
[1646720606713,2.02021568,2517.6,2517.5,0.007165]
[1646720608667,0.791,2517.6,2517.5,0.007165]
[1646720608865,0.491,2517.6,2517.5,0.007165]
[1646720609065,1.17413036,2517.7,2517.5,0.007165]
[1646720609364,0.491,2517.6,2517.5,0.007165]
[1646720609966,0.491,2517.6,2517.5,6.5e-05]
[1646720610167,0.491,2517.6,2517.0,0.18240986]
[1646720610168,5.0,2517.5,2517.0,0.18240986]
[1646720610365,0.99403,2517.3,2517.2,0.0173604]
[1646720610566,4.98503,2517.3,2517.2,0.0173604]
[1646720610814,4.98503,2517.3,2516.3,0.09689974]
[1646720610815,4.0,2517.0,2516.3,0.09689974]
[1646720611020,4.0,2517.0,2516.3,0.0102264]
[1646720611021,2.8964,2516.8,2516.3,0.0102264]
[1646720611216,0.3964,2516.6,2516.0,0.06634279]
[1646720611415,5.38157,2516.5,2516.0,0.06634279]
[1646720611616,2.80914438,2516.4,2516.0,0.06634279]
[1646720611820,3.59612438,2516.4,2516.0,0.06634279]
[1646720612019,3.49972438,2516.4,2516.0,0.06634279]
[1646720612218,4.49396028,2516.4,2516.0,0.06634279]
[1646720612420,7.99396028,2516.4,2515.9,0.0121536]
[1646720612621,10.98894028,2516.4,2515.9,5.36e-05]
[1646720612919,11.5174022,2516.2,2515.8,0.14650616]
[1646720613118,0.491,2516.1,2515.8,0.14650616]
[1646720613318,0.97729845,2516.0,2515.8,0.14650616]
[1646720613524,0.491,2515.9,2515.8,0.14650616]
[1646720613719,0.791,2515.9,2515.8,0.14650616]
[1646720615267,0.3,2515.9,2515.8,0.14650616]
[1646720615469,1.65968707,2516.3,2515.8,0.14650616]
[1646720615470,0.17470217,2516.3,2515.8,0.14650616]
[1646720616269,0.17470217,2516.3,2515.9,0.00530593]
[1646720616270,1.65968437,2516.3,2515.9,0.00530593]
[1646720617071,0.491,2516.3,2515.9,0.00530593]
[1646720617271,0.491,2516.3,2515.8,0.14650616]
[1646720617471,0.491,2516.7,2515.8,0.14650616]
[1646720617672,0.491,2516.7,2516.0,0.00530589]
[1646720618073,2.18642031,2516.6,2516.0,0.00530589]
[1646720618310,2.97742031,2516.6,2516.1,0.9135993]
[1646720618710,2.97742031,2516.6,2516.2,0.00530571]
[1646720619309,3.5,2516.5,2516.2,0.00530571]
[1646720619510,0.491,2516.4,2516.2,0.00530571]
[1646720619708,3.8964,2516.3,2515.8,0.14650616]
[1646720619909,0.491,2516.2,2515.9,0.02122589]
[1646720620313,0.491,2516.2,2516.0,0.90288966]
[1646720620913,0.491,2516.2,2515.8,0.14650616]
[1646720621112,0.8874,2516.2,2515.8,0.14650616]
[1646720621517,0.8874,2516.2,2515.8,7.82e-05]
[1646720621518,2.5,2516.0,2515.8,7.82e-05]
[1646720621713,2.5,2516.0,2515.6,0.0102554]
[1646720621714,9.50371612,2515.9,2515.6,0.0102554]
[1646720621977,9.50371612,2515.9,2514.7,0.01954588]
[1646720621978,9.14495059,2515.7,2514.7,0.01954588]
[1646720622169,6.44568321,2515.8,2514.7,0.01954588]
[1646720622170,6.132,2515.1,2514.9,0.39686]
[1646720622368,5.13831587,2515.0,2514.7,0.01954588]
[1646720622567,4.5,2514.9,2513.7,0.0602802]
[1646720622771,4.49518,2514.7,2513.8,0.05895083]
[1646720622968,0.3964,2514.5,2513.8,0.05895083]
[1646720623269,0.3964,2514.3,2513.8,0.05895083]
[1646720623467,0.491,2514.4,2513.8,0.05895083]
[1646720623468,4.3874,2514.2,2513.8,0.05895083]
[1646720623667,0.491,2514.1,2513.8,0.05895083]
[1646720623869,2.22696697,2514.0,2513.8,0.05895083]
[1646720624066,0.08545616,2513.7,2513.6,0.0086984]
[1646720624267,1.43235616,2513.7,2513.6,0.0086984]
[1646720624466,1.43235616,2513.7,2513.4,0.0257779]
[1646720624667,1.68235616,2513.7,2513.2,0.0232747]
[1646720624868,1.68235616,2513.7,2513.4,0.02121286]
[1646720625067,2.22745616,2513.7,2513.3,0.04092649]
[1646720625267,1.06424815,2513.4,2513.3,0.04092649]
[1646720625467,1.55524815,2513.4,2513.2,0.30223076]
[1646720625715,3.5,2513.3,2513.2,0.30223076]
[1646720625919,0.491,2513.3,2513.0,0.1696565]
[1646720626114,4.291,2513.3,2513.0,5.65e-05]
[1646720626316,0.01279077,2513.1,2513.0,5.65e-05]
[1646720626518,0.01279077,2513.1,2512.7,0.0630774]
[1646720626519,1.1504974,2512.9,2512.7,0.0630774]
[1646720626716,3.991,2512.8,2511.9,0.07263494]
[1646720626917,0.99575,2512.6,2512.2,0.00096]
[1646720627121,0.99575,2512.6,2512.1,0.0140832]
[1646720627122,0.8874,2512.5,2512.1,0.0140832]
[1646720627320,0.8874,2512.5,2512.1,0.4113832]
[1646720627321,0.0127195,2512.4,2512.1,0.4113832]
[1646720627520,0.2117195,2512.4,2512.1,0.4113832]
[1646720627720,0.791,2512.3,2512.1,0.4113832]
[1646720628519,3.5,2512.2,2512.1,0.4113832]
[1646720628723,3.5,2512.2,2511.2,0.07650532]
[1646720628724,0.0999168,2512.1,2511.2,0.07650532]
[1646720628920,3.4789372,2512.0,2511.2,0.07650532]
[1646720629122,3.65957335,2512.0,2511.2,0.07650532]
[1646720629321,3.95957335,2512.0,2511.2,0.07650532]
[1646720629565,0.92028792,2511.9,2511.3,0.97409232]
[1646720629765,0.341,2511.8,2511.5,0.00526013]
[1646720629970,4.38897335,2512.0,2511.5,0.00526013]
[1646720629971,0.791,2512.0,2511.5,0.00526013]
[1646720630166,0.199,2512.4,2511.5,0.00526013]
[1646720630167,0.69,2512.4,2511.5,0.00526013]
[1646720630369,0.69,2512.4,2511.5,3.40166013]
[1646720630370,0.491,2512.4,2511.5,3.40166013]
[1646720630568,1.19155184,2512.5,2511.5,3.3964]
[1646720630967,0.19155184,2512.5,2512.4,0.86754589]
[1646720631167,0.69,2512.9,2512.4,0.86754589]
[1646720631970,0.69,2512.9,2512.5,0.00175781]
[1646720632868,0.69,2512.9,2512.4,0.86754589]
[1646720633307,3.5,2512.8,2512.6,0.00526053]
[1646720633508,3.5,2512.8,2512.2,0.02104526]
[1646720633509,2.5,2512.6,2512.2,0.02104526]
[1646720633714,0.791,2512.5,2512.2,0.02104526]
[1646720634112,2.1874,2512.5,2511.2,0.07746532]
[1646720634316,0.3964,2512.4,2511.2,0.07746532]
[1646720634513,1.17804719,2512.0,2511.3,1.12194504]
[1646720634715,0.491,2511.9,2511.2,0.07746532]
[1646720634916,3.5,2511.8,2511.2,0.07650532]
[1646720635217,3.5,2511.8,2511.1,0.0561407]
[1646720635218,0.0129457,2511.3,2510.8,0.03003427]
[1646720635414,0.0129457,2511.3,2510.7,0.08169656]
[1646720635415,8.50563919,2511.2,2510.7,0.01415404]
[1646720635621,3.5,2510.6,2510.4,0.03041978]
[1646720635815,3.5,2510.6,2510.1,0.03767]
[1646720635816,0.89537622,2510.2,2510.1,1.912e-05]
[1646720636015,0.89537622,2510.2,2509.5,0.27515493]
[1646720636016,12.03054024,2510.2,2509.5,0.27515493]
[1646720636218,12.03054024,2510.2,2509.1,0.002005]
[1646720636219,1.03451413,2509.8,2509.1,0.002005]
[1646720636520,1.03451413,2509.8,2509.1,0.329111]
[1646720636521,3.991,2509.7,2509.1,0.329111]
[1646720636721,4.991,2509.7,2509.1,1.1e-05]
[1646720636979,6.132,2509.4,2509.1,1.1e-05]
[1646720637178,0.491,2509.3,2509.1,1.1e-05]
[1646720637576,0.791,2509.3,2509.1,1.1e-05]
[1646720637976,0.3,2509.3,2509.1,1.1e-05]
[1646720638178,2.9907325,2510.0,2509.1,0.00527525]
[1646720638179,0.64120517,2510.0,2509.1,0.00527525]
[1646720638378,0.491,2510.0,2509.8,1.17484893]
[1646720638774,1.7307,2510.7,2509.8,1.17484893]
[1646720638775,0.491,2510.5,2509.8,1.16999201]
[1646720638976,0.491,2510.5,2509.2,0.00096]
[1646720639177,0.1992,2510.7,2509.9,3.0]
[1646720639382,0.1992,2510.7,2509.9,0.99615]
[1646720639579,0.1992,2510.7,2509.8,0.00526377]
[1646720639780,4.1902,2510.7,2509.8,0.00526377]
[1646720639979,1.10601128,2510.1,2509.8,6.377e-05]
[1646720640182,1.48789,2510.0,2509.5,0.00096]
[1646720640379,1.48789,2510.0,2509.2,1.1e-05]
[1646720640578,5.4938093,2509.9,2509.2,1.1e-05]
[1646720640822,6.132,2509.7,2509.2,1.1e-05]
[1646720641019,6.132,2509.7,2508.7,0.0761668]
[1646720641020,7.28730503,2509.5,2508.7,0.0752068]
[1646720641219,0.012341,2509.3,2508.9,2e-05]
[1646720641417,0.491,2509.2,2508.9,2e-05]
[1646720641625,1.1524984,2509.1,2508.9,2e-05]
[1646720641823,0.491,2509.0,2508.9,2e-05]
[1646720642231,1.5929,2509.0,2508.9,2e-05]
[1646720642425,1.5929,2509.0,2508.9,0.01604]
[1646720643021,1.792,2509.0,2508.9,0.01604]
[1646720643223,2.89242209,2509.0,2508.9,0.03179188]
[1646720643722,1.792,2509.0,2508.9,0.03179188]
[1646720644121,0.62156947,2509.0,2508.9,0.03179188]
[1646720644322,1.11256947,2509.0,2508.9,0.03179188]
[1646720645763,0.50375101,2509.1,2508.9,0.03179188]
[1646720645964,0.20375101,2509.1,2508.9,0.03179188]
[1646720646165,1.491,2509.8,2508.9,0.03179188]
[1646720646366,0.1991,2509.7,2508.9,0.03179188]
[1646720646665,0.1991,2509.7,2509.2,1.05843754]
[1646720647066,0.1991,2509.7,2509.2,1.45483754]
[1646720647268,1.5028,2510.2,2509.2,0.01604]
[1646720647466,0.491,2510.1,2509.2,0.01604]
[1646720647669,0.00359203,2509.8,2509.2,0.01604]
[1646720648333,4.19369203,2509.8,2509.2,0.01604]
[1646720648524,0.6901,2509.8,2509.2,0.01604]
[1646720648722,0.6936921,2509.8,2509.2,0.01604]
[1646720648921,0.4945921,2509.8,2509.2,0.01604]
[1646720649121,0.4945921,2509.8,2508.7,0.05795868]
[1646720649524,0.89172065,2509.5,2508.9,1.19035627]
[1646720649722,0.89172065,2509.5,2508.7,0.05795868]
[1646720649927,0.89172065,2509.5,2508.7,0.05699868]
[1646720650132,0.89172065,2509.5,2509.1,0.00525676]
[1646720650329,1.19172065,2509.5,2509.1,0.00525676]
[1646720650929,1.19172065,2509.5,2508.7,1.18132813]
[1646720651129,1.19172065,2509.5,2508.7,1.13132813]
[1646720651331,1.19172065,2509.5,2509.2,0.00525673]
[1646720651730,0.00525536,2509.8,2509.2,0.00525673]
[1646720652171,1.5028,2510.2,2508.9,3.68929]
[1646720652368,1.5028,2510.2,2509.0,0.00096]
[1646720652574,1.5028,2510.2,2509.0,0.30096]
[1646720652768,1.5028,2510.2,2509.5,0.98134435]
[1646720652970,0.6992,2510.5,2509.5,0.98134435]
[1646720653172,0.1992,2510.5,2509.5,0.98134435]
[1646720653370,0.1992,2510.5,2509.5,1.37774435]
[1646720653570,0.1991,2510.7,2509.5,0.98134435]
[1646720653773,1.00266219,2510.5,2509.5,0.98134435]
[1646720653971,1.00266219,2510.5,2509.5,1.97771435]
[1646720654372,1.00266219,2510.5,2509.4,0.00096]
[1646720654373,0.93451745,2510.1,2509.4,0.00096]
[1646720654572,3.5,2510.0,2509.2,0.00096]
[1646720654772,1.92821745,2510.1,2508.7,0.00699868]
[1646720654971,1.92821745,2510.1,2509.6,0.00167213]
[1646720655373,1.43721745,2510.1,2509.6,0.00167213]
[1646720655572,0.3,2510.1,2509.6,0.00167213]
[1646720655816,0.3,2510.1,2509.4,0.95847622]
[1646720655817,0.1991,2510.4,2509.4,0.95847622]
[1646720656215,0.491,2510.6,2509.6,0.00167213]
[1646720656614,1.9929445,2510.4,2509.6,0.00167213]
[1646720656815,0.15924036,2510.4,2509.8,1.43876361]
[1646720657016,0.6901,2511.0,2509.8,1.43876361]
[1646720657017,0.1991,2511.0,2509.8,1.43876361]
[1646720657519,1.7428128,2511.4,2510.6,0.3964]
[1646720657520,0.1991,2511.1,2510.6,0.3964]
[1646720657721,0.1991,2511.1,2510.7,0.0310415]
[1646720658119,0.1991,2512.1,2510.7,0.0310415]
[1646720658319,0.1991,2512.1,2510.7,0.0320015]
[1646720658522,1.15162015,2511.3,2510.7,3.05055852]
[1646720658720,1.15162015,2511.3,2510.8,0.00096]
[1646720658918,1.15162015,2511.3,2510.7,3.3183915]
[1646720659319,0.17817512,2511.4,2510.7,3.3183915]
[1646720659604,1.9917218,2511.8,2510.6,2.21151493]
[1646720659605,0.9959381,2511.3,2510.6,1.99161]
[1646720659801,0.9959381,2511.3,2510.6,2.29161]
[1646720660003,1.14967317,2511.3,2510.6,3.28765]
[1646720660504,0.7957,2511.4,2510.6,3.28765]
[1646720660505,0.491,2511.4,2510.6,2.29161]
[1646720660701,1.9921815,2511.2,2510.6,2.29161]
[1646720660901,0.3,2511.2,2510.6,2.29161]
[1646720661301,0.3,2511.2,2510.8,0.3964]
[1646720661508,0.1991,2511.9,2511.0,0.3964]
[1646720661509,0.94162163,2511.6,2511.0,0.3964]
[1646720661702,0.94162163,2511.6,2511.1,1.99152]
[1646720661902,0.1991,2511.9,2511.1,2.38792]
[1646720662108,2.15166612,2512.5,2511.3,0.3964]
[1646720662405,1.7204,2512.7,2511.6,1.39182]
[1646720662607,1.7204,2512.7,2511.9,0.99547]
[1646720662809,1.20601553,2512.4,2511.9,0.99547]
[1646720663210,1.21112997,2512.4,2511.9,0.99547]
[1646720663411,0.00511444,2512.4,2511.9,0.99547]
[1646720663612,0.00511444,2512.4,2512.0,1.39189]
[1646720663811,0.00511444,2512.4,2512.0,1.29549]
[1646720664216,0.00511444,2512.4,2512.0,1.99081]
[1646720664617,0.16098415,2512.6,2512.0,1.99081]
[1646720664816,0.0051145,2512.3,2512.0,2.38721]
[1646720665016,0.0051145,2512.3,2512.0,4.37805]
[1646720665222,0.0051145,2512.3,2512.0,5.32805]
[1646720665223,1.45e-05,2512.3,2512.0,5.32805]
[1646720665418,1.5214,2513.6,2512.3,0.3964]
[1646720665621,1.5214,2513.6,2512.9,1.04303018]
[1646720665622,2.66462897,2513.6,2512.9,1.04303018]
[1646720665818,1.34212897,2513.6,2512.9,1.04303018]
[1646720666017,1.34212897,2513.6,2512.9,0.99489]
[1646720666221,1.16401885,2513.5,2512.7,0.00096]
[1646720666422,0.1988,2513.4,2512.5,0.00096]
[1646720666619,0.3964,2513.2,2512.1,1.99079]
[1646720666821,1.16401885,2513.1,2512.2,0.00096]
[1646720667087,0.3964,2513.2,2512.1,1.99079]
[1646720667088,1.04097513,2512.6,2512.1,3.38258]
[1646720667288,0.3,2512.6,2512.1,4.67787]
[1646720667589,0.3,2512.6,2512.1,4.91183346]
[1646720667787,0.45965767,2512.9,2512.3,0.9954]
[1646720667991,0.3,2512.9,2512.3,0.9954]
[1646720668189,0.3,2512.9,2512.4,0.99526]
[1646720668190,0.00358606,2512.5,2512.4,0.99526]
[1646720668693,0.2031646,2513.0,2512.5,12.08]
[1646720668889,0.16433809,2513.8,2512.7,12.31084459]
[1646720669089,2.36245019,2514.3,2512.7,12.31084459]
[1646720669090,0.9948825,2514.0,2513.0,3.99483]
[1646720669291,0.9948825,2514.0,2513.0,5.39123]
[1646720669487,1.20710617,2514.0,2513.0,5.69123]
[1646720669688,0.87298914,2513.9,2513.2,2.20768528]
[1646720669887,0.87298914,2513.9,2513.2,0.99493]
[1646720670092,1.86795604,2513.9,2513.2,0.99493]
[1646720670289,1.86795604,2513.9,2513.2,1.29493]
[1646720670715,0.00358428,2513.6,2513.2,2.28989]
[1646720671513,0.00358428,2513.6,2513.2,1.29493]
[1646720671714,1.16863199,2513.6,2512.8,3.98125]
[1646720671913,0.03545616,2513.7,2513.1,0.99511]
[1646720671914,0.00358428,2513.5,2513.1,0.99511]
[1646720672120,0.00358428,2513.5,2512.8,3.98029]
[1646720672121,0.91635418,2513.4,2512.8,3.98029]
[1646720672316,0.90233613,2513.0,2512.8,3.98029]
[1646720672515,0.90233613,2513.0,2512.8,1.99008]
[1646720672516,0.3,2513.0,2512.8,1.99008]
[1646720672716,0.21939631,2513.1,2512.8,1.99008]
[1646720672717,0.21939631,2513.1,2512.8,2.98512]
[1646720672917,1.48847105,2513.4,2512.8,2.98512]
[1646720673117,0.00358428,2513.0,2512.8,3.98022]
[1646720673517,0.00358428,2513.0,2512.8,2.98518]
[1646720673919,1.36715668,2513.1,2512.8,2.98518]
[1646720674458,0.00358428,2513.0,2512.8,2.98518]
[1646720675057,0.00358428,2513.0,2512.8,1.99008]
[1646720675257,1.36715668,2513.1,2512.8,1.99008]
[1646720675457,0.00358428,2513.0,2512.8,1.99008]
[1646720676459,1.36715668,2513.1,2512.8,2.98515]
[1646720676658,0.005263,2513.0,2512.8,2.98515]
[1646720677064,6.3e-05,2513.0,2512.8,2.98515]
[1646720677263,6.3e-05,2513.0,2512.8,4.28515]
[1646720677663,0.03545616,2513.7,2512.8,4.28515]
[1646720677862,0.03545616,2513.7,2513.2,0.99485]
[1646720678063,0.03545616,2513.7,2513.3,1.01540904]
[1646720678525,0.03545616,2513.7,2513.2,0.99485]
[1646720678720,0.03545616,2513.7,2513.3,0.99488]
[1646720679120,0.00358336,2513.6,2513.3,1.98978]
[1646720679321,0.00358336,2513.6,2513.3,0.99488]
[1646720679723,1.40486167,2513.6,2513.3,0.99488]
[1646720680122,1.40127831,2513.6,2513.3,0.99488]
[1646720680423,0.30358336,2513.6,2513.3,0.99488]
[1646720680623,0.00358336,2513.6,2513.3,0.99488]
[1646720681225,0.03545616,2513.7,2513.3,0.99488]
[1646720681424,1.00022113,2513.6,2513.2,1.98975]
[1646720681622,1.00022113,2513.6,2513.1,1.9897]
[1646720681623,1.9901789,2513.5,2513.1,1.9897]
[1646720681960,2.45242348,2513.5,2513.1,1.9897]
[1646720682166,1.01792415,2513.4,2513.1,1.9897]
[1646720682364,0.46224458,2513.5,2513.2,1.9899]
[1646720682565,0.3,2513.5,2513.3,0.99493]
[1646720682764,0.03545616,2513.7,2513.3,0.99493]
[1646720682765,0.00526273,2513.4,2513.3,0.99493]
[1646720683765,1.45441184,2513.5,2513.3,0.99493]
[1646720683966,0.3052627,2513.5,2513.3,0.99493]
[1646720684166,0.0052627,2513.5,2513.3,0.99493]
[1646720684368,0.0052627,2513.5,2512.4,2.98486]
[1646720684568,0.0052627,2513.5,2512.6,0.00096]
[1646720684770,0.491,2513.5,2512.4,2.98582]
[1646720685171,0.00526284,2513.3,2512.4,2.98582]
[1646720685369,0.00526284,2513.3,2512.5,3.97998]
[1646720685370,1.23433843,2513.1,2512.5,3.97998]
[1646720685570,1.23433843,2513.1,2512.7,0.99522]
[1646720685814,1.53433843,2513.1,2512.3,1.99148]
[1646720686014,1.53433843,2513.1,2512.3,1.99052]
[1646720686419,1.53944332,2513.1,2512.3,1.99052]
[1646720686614,1.11871294,2512.7,2512.6,1.99037]
[1646720686815,0.16872842,2512.8,2512.6,1.99037]
[1646720687019,0.30510489,2513.1,2512.6,2.29037]
[1646720687219,0.3,2513.1,2512.6,2.29037]
[1646720687420,1.50492535,2513.2,2512.6,2.29037]
[1646720687621,0.0051046,2513.1,2512.6,2.29037]
[1646720688120,1.04503257,2513.1,2512.7,0.9952]
[1646720688519,1.03992797,2513.1,2512.7,0.9952]
[1646720688724,1.03992797,2513.1,2512.7,1.99033]
[1646720688725,1.04503279,2513.1,2512.7,1.99033]
[1646720689762,1.03992797,2513.1,2512.7,2.98548]
[1646720689962,1.04492572,2513.1,2512.8,0.99516]
[1646720690163,0.00499775,2513.1,2512.8,4.49516]
[1646720690370,0.00499775,2513.1,2512.9,0.99506]
[1646720690568,0.00499775,2513.1,2512.9,2.98483]
[1646720690964,1.1899652,2513.8,2513.1,0.99491]
[1646720691163,1.23198933,2513.6,2513.2,0.99498]
[1646720691366,1.23198933,2513.6,2513.1,1.29491]
[1646720691562,1.73078933,2513.6,2513.1,1.29491]
[1646720692168,2.52698493,2513.6,2513.1,1.29491]
[1646720692368,2.52698493,2513.6,2512.7,0.99523]
[1646720692369,0.00499769,2513.5,2512.7,0.99523]
[1646720692567,0.00499769,2513.5,2512.7,1.99025]
[1646720692568,2.8778691,2513.4,2512.7,1.99025]
[1646720692768,1.50330746,2513.3,2512.7,1.99025]
[1646720693068,0.491,2513.2,2512.7,1.99025]
[1646720693315,1.7862652,2513.2,2512.7,1.99025]
[1646720693514,0.92086123,2512.9,2512.7,1.99025]
[1646720693717,1.22086123,2512.9,2512.6,0.3]
[1646720693918,1.22086123,2512.9,2512.4,1.99046]
[1646720693919,1.22086123,2512.9,2512.4,0.99536]
[1646720694118,1.71186123,2512.9,2512.2,0.00096]
[1646720694316,1.71186123,2512.9,2512.0,2.0097339]
[1646720694514,1.71186123,2512.9,2512.0,1.99061]
[1646720694715,1.32998341,2512.5,2512.0,1.99061]
[1646720694914,1.32998341,2512.5,2512.0,5.9913539]
[1646720695117,1.32998341,2512.5,2512.2,0.99532]
[1646720696117,0.3,2512.5,2512.2,2.98601]
[1646720696318,1.1942352,2513.0,2512.2,1.99069]
[1646720696319,1.17706593,2513.0,2512.2,1.99069]
[1646720696520,0.3,2512.6,2512.3,0.99531]
[1646720696718,0.491,2512.6,2512.3,0.3]
[1646720696970,0.491,2512.6,2511.8,4.97776]
[1646720697174,4.0,2512.4,2511.3,2.98706]
[1646720697374,6.69333469,2512.3,2512.0,9.363e-05]
[1646720697575,1.60173047,2511.8,2511.3,0.00477468]
[1646720697774,5.49851169,2511.7,2511.3,0.00477468]
[1646720697973,0.3964,2511.5,2510.4,0.2255675]
[1646720698173,0.3964,2511.3,2510.4,0.2255675]
[1646720698372,5.49920361,2511.2,2509.7,1.99264]
[1646720698576,0.9964087,2511.1,2509.8,0.47921271]
[1646720698775,1.01876514,2510.7,2510.0,1.2269726]
[1646720698974,1.01876514,2510.7,2510.1,0.47921271]
[1646720699182,1.31876514,2510.7,2509.9,0.99634]
[1646720699375,1.31876514,2510.7,2510.0,0.47919444]
[1646720699577,4.81876514,2510.7,2510.0,0.47919444]
[1646720699781,1.487228,2510.6,2509.7,1.99267]
[1646720700078,1.07975416,2509.8,2509.4,0.27308256]
[1646720700283,1.07975416,2509.8,2509.2,1.9928]
[1646720700284,2.56335416,2509.8,2509.2,1.9928]
[1646720700481,2.56335416,2509.8,2508.7,1.67243687]
[1646720700482,0.491,2509.7,2508.7,0.00699868]
[1646720700743,0.491,2509.7,2508.9,0.9967]
[1646720700744,0.5057805,2509.5,2508.9,0.9967]
[1646720700926,0.40884469,2509.9,2508.9,0.9967]
[1646720700927,0.92995695,2511.2,2509.4,3.0]
[1646720701129,0.95355197,2511.8,2510.6,0.98688086]
[1646720701323,0.89587519,2511.8,2511.3,0.01215831]
[1646720701523,2.8642,2512.4,2511.3,0.01215831]
[1646720701524,0.71528551,2512.4,2511.7,0.01267255]
[1646720701732,1.0,2512.6,2511.8,0.99544]
[1646720701733,1.02933885,2512.3,2511.8,0.99544]
[1646720701928,1.0,2512.6,2511.8,0.99544]
[1646720702127,1.0,2512.6,2512.1,0.89589587]
[1646720702324,1.21528551,2513.1,2512.4,3.0]
[1646720702325,0.199,2513.0,2512.4,3.0]
[1646720702525,0.95384151,2513.5,2512.7,3.0]
[1646720702526,0.199,2513.5,2512.7,3.0]
[1646720702725,0.199,2513.5,2513.1,0.3964]
[1646720702924,1.11338551,2513.8,2513.3,0.3964]
[1646720702925,0.3981,2513.8,2513.3,0.3964]
[1646720703124,0.3981,2513.8,2513.1,0.491]
[1646720703125,1.0384314,2513.6,2513.1,1.86226075]
[1646720703324,1.0384314,2513.6,2513.2,2.3861]
[1646720703528,1.0384314,2513.6,2513.3,0.99487]
[1646720703725,1.0384314,2513.6,2513.2,0.3]
[1646720703726,4.21528551,2513.5,2513.2,0.3]
[1646720703926,4.21528551,2513.5,2513.0,0.3]
[1646720703927,0.71528551,2513.4,2513.0,0.3]
[1646720704130,0.71528551,2513.4,2512.7,0.3]
[1646720704470,3.69734622,2513.5,2512.4,0.00096]
[1646720704471,1.18720501,2512.8,2512.4,0.00096]
[1646720704670,2.29690501,2512.8,2512.4,0.00096]
[1646720704873,2.29690501,2512.8,2512.2,0.12566901]
[1646720705069,2.59690501,2512.8,2512.2,0.12566901]
[1646720705669,1.09273589,2512.4,2512.1,0.199]
[1646720705870,1.09273589,2512.4,2511.9,0.199]
[1646720706070,1.39273589,2512.4,2512.1,1.99071]
[1646720706271,1.39273589,2512.4,2511.9,0.9954]
[1646720706469,1.39273589,2512.4,2511.7,4.97623]
[1646720706470,1.39273589,2512.4,2511.6,0.00096]
[1646720706671,1.39273589,2512.4,2511.2,1.20376848]
[1646720706672,3.5,2512.3,2511.3,0.00096]
[1646720707076,2.28540024,2512.4,2511.3,0.99656]
[1646720707275,1.79440024,2512.4,2511.3,0.99656]
[1646720707473,1.39800024,2512.4,2511.5,0.99549]
[1646720707674,0.30526435,2512.4,2511.7,1.39187]
[1646720707875,0.3,2512.4,2511.7,1.39187]
[1646720708074,0.00526451,2512.0,2511.7,1.39187]
[1646720708315,6.451e-05,2512.0,2511.7,4.37789]
[1646720708516,3.91650266,2513.6,2512.3,0.3964]
[1646720708517,0.71528551,2513.2,2512.3,0.3964]